bitfinex-derivatives/quotes_BNBF0:USTF0_20251225
["timestamp","ask_amount","ask_price","bid_price","bid_amount"]
[1766687772814,1.18899147,841.95,840.97,1.19011419]
[1766687773014,1.18899147,841.94,840.97,1.19011419]
[1766687773215,1.18899147,841.93,840.97,1.19011419]
[1766687773512,1.18899147,841.92,840.97,1.19011419]
[1766687773815,1.18899147,841.91,840.97,1.19011419]
[1766687774016,1.18899147,841.9,840.97,1.19011419]
[1766687774211,1.18899147,841.89,840.97,1.19011419]
[1766687774411,1.18899147,841.88,840.97,1.19011419]
[1766687774608,1.18899147,841.87,840.97,1.19011419]
[1766687774909,1.18899147,841.86,840.97,1.19011419]
[1766687775113,0.20673677,841.96,840.97,1.19011419]
[1766687775313,1.18899221,841.95,840.97,1.19011419]
[1766687775511,1.18899221,841.94,840.97,1.19011419]
[1766687775716,1.18899221,841.93,840.97,1.19011419]
[1766687775914,1.18899221,841.92,840.97,1.19011419]
[1766687776216,1.18899221,841.91,840.97,1.19011419]
[1766687776512,1.18899221,841.9,840.97,1.19011419]
[1766687776713,1.18899221,841.89,840.97,1.19011419]
[1766687776913,1.18899221,841.88,840.97,1.19011419]
[1766687777216,1.18899221,841.87,840.97,1.19011419]
[1766687777415,1.18899221,841.86,840.97,1.19011419]
[1766687777614,0.20673677,841.96,840.97,1.19011419]
[1766687777816,1.18899166,841.95,840.97,1.19011419]
[1766687778012,1.18899166,841.94,840.97,1.19011419]
[1766687778217,1.18899166,841.93,840.97,1.19011419]
[1766687778518,1.18899166,841.92,840.98,1.19011419]
[1766687778717,1.18899166,841.91,840.98,1.19011419]
[1766687779018,1.18899166,841.9,840.98,10.02146963]
[1766687779216,1.18899166,841.89,840.98,10.02146963]
[1766687779413,1.18899166,841.88,840.98,10.02146963]
[1766687779713,1.18899166,841.87,840.98,10.02146963]
[1766687779912,1.18899166,841.86,840.98,10.02146963]
[1766687780212,1.18899166,841.85,840.98,10.02146963]
[1766687780417,0.20673677,841.96,840.98,10.02146963]
[1766687780620,1.18899166,841.95,840.98,10.02146963]
[1766687780814,1.18899166,841.94,840.98,10.02146963]
[1766687781118,1.18899166,841.93,840.98,10.02146963]
[1766687781414,1.18899166,841.92,840.98,10.02146963]
[1766687781718,1.18899166,841.91,840.98,10.02146963]
[1766687782017,1.18899166,841.9,840.98,10.02146963]
[1766687782218,1.18899166,841.89,840.98,10.02146963]
[1766687782513,1.18899166,841.88,840.98,10.02146963]
[1766687782714,1.18899166,841.87,840.98,1.19011419]
[1766687782916,1.18899166,841.86,840.98,1.19011419]
[1766687783114,1.18899166,841.85,840.98,1.19011419]
[1766687783319,0.20673677,841.96,840.99,1.19011419]
[1766687783618,1.18899135,841.95,840.99,1.19011419]
[1766687783814,1.18899135,841.94,840.99,1.19011419]
[1766687784017,1.18899135,841.93,840.99,1.19011419]
[1766687784215,1.18899135,841.92,840.94,1.19011419]
[1766687784414,1.18899135,841.91,840.95,1.19011419]
[1766687784713,1.18899135,841.9,840.95,1.19011419]
[1766687784917,1.18899135,841.89,840.95,1.19011419]
[1766687785214,1.18899135,841.88,840.95,1.19011419]
[1766687785514,1.18899135,841.87,840.95,1.19011419]
[1766687785714,1.18899135,841.86,840.95,1.19011419]
[1766687786018,0.88870677,841.95,840.95,1.19011419]
[1766687786019,1.18899135,841.85,840.95,1.19011419]
[1766687786217,1.18899135,841.84,840.95,1.19011419]
[1766687786415,1.18899135,841.83,840.96,1.19011419]
[1766687786619,1.18899135,841.82,840.96,1.19011419]
[1766687786821,1.18899135,841.81,840.96,10.00598895]
[1766687787016,1.18899135,841.8,840.96,10.00598895]
[1766687787220,1.18899135,841.79,840.96,10.00598895]
[1766687787418,0.88870677,841.94,840.96,10.00598895]
[1766687787717,1.18905248,841.93,840.96,10.00598895]
[1766687787917,1.18905248,841.92,840.96,10.00598895]
[1766687788122,1.18905248,841.91,840.96,10.00598895]
[1766687788318,1.18905248,841.9,840.97,1.19011419]
[1766687788517,1.18905248,841.89,840.97,1.19011419]
[1766687788717,1.18905248,841.88,840.96,10.00598895]
[1766687788921,1.18905248,841.87,840.96,10.00598895]
[1766687789122,1.18905248,841.86,840.96,10.00598895]
[1766687789418,1.18905248,841.85,840.97,1.19011419]
[1766687789621,1.18905248,841.84,840.97,1.19011419]
[1766687789821,1.18905248,841.83,840.97,1.19011419]
[1766687790016,1.18905248,841.82,840.97,1.19011419]
[1766687790221,1.18905248,841.81,840.97,1.19011419]
[1766687790524,1.18905248,841.8,840.97,1.19011419]
[1766687790721,1.18905248,841.79,840.97,1.19011419]
[1766687790922,1.18905248,841.78,840.97,1.19011419]
[1766687791121,1.18905248,841.77,840.97,1.19011419]
[1766687791322,0.88870677,841.92,840.98,1.19011419]
[1766687791522,1.18905269,841.91,840.98,1.19011419]
[1766687791721,1.18905269,841.9,840.98,1.19011419]
[1766687791922,1.18905269,841.89,840.98,1.19011419]
[1766687792222,1.18905269,841.88,840.98,1.19011419]
[1766687792421,1.18905269,841.87,840.99,1.19011419]
[1766687792717,1.18905269,841.86,840.99,1.19011419]
[1766687792922,1.18905269,841.85,840.99,1.19011419]
[1766687793123,1.18905269,841.84,840.99,1.19011419]
[1766687793323,1.18905269,841.83,840.99,1.19011419]
[1766687793523,1.18905269,841.82,840.99,1.19011419]
[1766687793718,1.18905269,841.81,840.99,1.19011419]
[1766687793920,1.18905269,841.8,840.99,1.19011419]
[1766687794123,1.18905269,841.79,840.99,1.19011419]
[1766687794319,1.18905269,841.78,840.99,1.19011419]
[1766687794522,1.18905269,841.77,841.01,1.19011419]
[1766687794721,1.18905269,841.76,841.01,1.19011419]
[1766687795026,1.18905269,841.75,841.01,1.19011419]
[1766687795326,1.18905269,841.74,841.0,1.19011419]
[1766687795522,0.20676563,841.83,841.0,1.19011419]
[1766687795726,1.18905311,841.82,841.0,1.19011419]
[1766687795927,1.18905311,841.81,841.0,1.19011419]
[1766687796126,1.18905311,841.8,841.0,1.19011419]
[1766687796324,1.18905311,841.79,841.0,1.19011419]
[1766687796523,1.18905311,841.78,841.0,1.19011419]
[1766687796728,1.18905311,841.77,841.0,1.19011419]
[1766687796926,1.18905311,841.76,841.0,1.19011419]
[1766687797123,1.18905311,841.75,841.0,1.19011419]
[1766687797323,1.18905311,841.74,841.0,1.19011419]
[1766687797522,0.20676563,841.83,841.0,1.19011419]
[1766687797723,1.18905311,841.82,841.0,1.19011419]
[1766687797923,1.18905311,841.81,840.99,1.19011419]
[1766687798128,1.18905311,841.8,840.99,1.19011419]
[1766687798328,1.18905311,841.79,840.99,1.19011419]
[1766687798529,1.18905311,841.78,840.97,1.19011419]
[1766687798828,1.18905311,841.77,840.97,1.19011419]
[1766687799029,1.18905311,841.76,840.97,1.19011419]
[1766687799328,1.18905311,841.75,840.97,1.19011419]
[1766687799626,1.18905311,841.74,840.97,1.19011419]
[1766687799826,1.18905311,841.73,840.97,1.19011419]
[1766687800124,1.18905311,841.72,840.97,1.19011419]
[1766687800324,0.20676563,841.83,840.97,1.19011419]
[1766687800521,1.1890996,841.82,840.97,1.19011419]
[1766687800727,1.1890996,841.81,840.97,1.19011419]
[1766687800927,1.1890996,841.8,840.97,1.19011419]
[1766687801125,1.1890996,841.79,840.97,1.19011419]
[1766687801425,1.1890996,841.78,840.96,1.19011419]
[1766687801628,1.1890996,841.77,840.96,1.19011419]
[1766687801825,1.1890996,841.76,840.96,1.19011419]
[1766687802024,1.1890996,841.75,840.96,1.19011419]
[1766687802228,1.1890996,841.74,840.96,1.19011419]
[1766687802427,1.1890996,841.73,840.96,1.19011419]
[1766687802627,1.1890996,841.72,840.96,1.19011419]
[1766687802832,0.20676563,841.83,840.96,1.19011419]
[1766687803032,1.18909897,841.82,840.96,1.19011419]
[1766687803228,1.18909897,841.81,840.96,1.19011419]
[1766687803428,1.18909897,841.8,840.96,1.19011419]
[1766687803631,1.18909897,841.79,840.96,1.19011419]
[1766687803930,1.18909897,841.78,840.96,1.19011419]
[1766687804127,1.18909897,841.77,840.96,1.19011419]
[1766687804429,1.18909897,841.76,840.96,1.19011419]
[1766687804627,1.18909897,841.75,840.96,1.19011419]
[1766687804827,1.18909897,841.74,840.96,1.19011419]
[1766687805027,1.18909897,841.73,840.96,1.19011419]
[1766687805225,1.18909897,841.72,840.96,1.19011419]
[1766687805430,0.20676563,841.83,840.96,1.19011419]
[1766687805731,1.18909897,841.82,840.96,1.19011419]
[1766687806031,1.18909897,841.81,840.96,1.19011419]
[1766687806231,1.18909897,841.8,840.96,1.19011419]
[1766687806430,1.18909897,841.79,840.96,1.19011419]
[1766687806635,1.18909897,841.78,840.96,1.19011419]
[1766687806829,1.18909897,841.77,840.96,1.19011419]
[1766687807032,1.18909897,841.76,840.96,1.19011419]
[1766687807230,1.18909897,841.75,840.96,1.19011419]
[1766687807428,1.18909897,841.74,840.96,1.19011419]
[1766687807631,1.18909897,841.73,840.96,1.19011419]
[1766687807829,1.18909897,841.72,840.96,1.19011419]
[1766687808033,0.20676563,841.83,840.96,1.19011419]
[1766687808231,1.18909904,841.82,840.96,1.19011419]
[1766687808429,1.18909904,841.81,840.96,1.19011419]
[1766687808630,1.18909904,841.8,840.96,1.19011419]
[1766687808829,1.18909904,841.79,840.96,1.19011419]
[1766687809034,1.18909904,841.78,840.96,1.19011419]
[1766687809231,1.18909904,841.77,840.96,1.19011419]
[1766687809531,1.18909904,841.76,840.96,1.19011419]
[1766687809730,1.18909904,841.75,840.96,1.19011419]
[1766687809932,1.18909904,841.74,840.96,1.19011419]
[1766687810132,1.18909904,841.73,840.96,1.19011419]
[1766687810333,1.18909904,841.72,840.96,1.19011419]
[1766687810633,0.20676563,841.83,840.96,1.19011419]
[1766687810929,1.18909904,841.82,840.96,1.19011419]
[1766687811133,1.18909904,841.81,840.96,1.19011419]
[1766687811333,1.18909904,841.8,840.96,1.19011419]
[1766687811633,1.18909904,841.79,840.96,1.19011419]
[1766687811833,1.18909904,841.78,840.96,1.19011419]
[1766687812033,1.18909904,841.77,840.96,1.19011419]
[1766687812330,1.18909904,841.76,840.96,1.19011419]
[1766687812534,1.18909904,841.75,840.96,1.19011419]
[1766687812732,1.18909904,841.74,840.96,1.19011419]
[1766687812932,1.18909904,841.73,840.96,1.19011419]
[1766687813137,1.18909904,841.72,840.96,1.19011419]
[1766687813335,0.20676563,841.83,840.96,1.19011419]
[1766687813536,1.18909915,841.82,840.96,1.19011419]
[1766687813736,1.18909915,841.81,840.96,1.19011419]
[1766687813936,1.18909915,841.8,840.96,1.19011419]
[1766687814134,1.18909915,841.79,840.96,1.19011419]
[1766687814338,1.18909915,841.78,840.96,1.19011419]
[1766687814632,1.18909915,841.77,840.95,1.19011419]
[1766687814837,1.18909915,841.76,840.95,1.19011419]
[1766687815037,1.18909915,841.75,840.95,1.19011419]
[1766687815232,1.18909915,841.74,840.95,1.19011419]
[1766687815435,1.18909915,841.73,840.95,1.19011419]
[1766687815633,1.18909915,841.72,840.95,1.19011419]
[1766687815838,0.20676563,841.83,840.95,1.19011419]
[1766687816035,1.18909915,841.82,840.95,1.19011419]
[1766687816234,1.18909915,841.81,840.95,1.19011419]
[1766687816435,1.18909915,841.8,840.95,1.19011419]
[1766687816639,1.18909915,841.79,840.95,1.19011419]
[1766687816940,1.18909915,841.78,840.95,1.19011419]
[1766687817236,1.18909915,841.77,840.95,1.19011419]
[1766687817440,1.18909915,841.76,840.95,1.19011419]
[1766687817737,1.18909915,841.75,840.95,1.19011419]
[1766687817940,1.18909915,841.74,840.95,1.19011419]
[1766687818140,1.18909915,841.73,840.95,1.19011419]
[1766687818440,1.18909915,841.72,840.95,1.19011419]
[1766687818640,0.20676563,841.83,840.95,1.19011419]
[1766687818839,1.18910906,841.82,840.95,1.19011419]
[1766687819140,1.18910906,841.81,840.95,1.19011419]
[1766687819340,1.18910906,841.8,840.95,1.19011419]
[1766687819640,1.18910906,841.79,840.95,1.19011419]
[1766687819940,1.18910906,841.78,840.95,1.19011419]
[1766687820137,1.18910906,841.77,840.95,1.19011419]
[1766687820337,1.18910906,841.76,840.93,1.19011419]
[1766687820542,1.18910906,841.75,840.93,1.19011419]
[1766687820743,1.18910906,841.74,840.93,1.19011419]
[1766687820938,1.18910906,841.73,840.93,1.19011419]
[1766687821142,1.18910906,841.72,840.93,1.19011419]
[1766687821344,1.18910906,841.71,840.93,1.19011419]
[1766687821643,1.18910906,841.7,840.93,1.19011419]
[1766687821943,0.20676563,841.83,840.93,1.19011419]
[1766687822244,1.18913199,841.82,840.93,1.19011419]
[1766687822443,1.18913199,841.81,840.93,1.19011419]
[1766687822742,1.18913199,841.8,840.93,1.19011419]
[1766687822943,1.18913199,841.79,840.93,1.19011419]
[1766687823139,1.18913199,841.78,840.93,1.19011419]
[1766687823343,1.18913199,841.77,840.94,1.19011419]
[1766687823543,1.18913199,841.76,840.94,1.19011419]
[1766687823745,1.18913199,841.75,840.94,1.19011419]
[1766687823941,1.18913199,841.74,840.94,10.21532221]
[1766687824146,1.18913199,841.73,840.94,10.21532221]
[1766687824341,1.18913199,841.72,840.94,10.21532221]
[1766687824543,1.18913199,841.71,840.94,10.21532221]
[1766687824843,1.18913199,841.7,840.94,10.21532221]
[1766687825040,1.18913199,841.69,840.94,10.21532221]
[1766687825244,0.20676563,841.83,840.94,10.21532221]
[1766687825444,1.18913199,841.82,840.94,10.21532221]
[1766687825644,1.18913199,841.81,840.94,10.21532221]
[1766687825847,1.18913199,841.8,840.94,10.21532221]
[1766687826042,1.18913199,841.79,840.94,10.21532221]
[1766687826246,1.18913199,841.78,840.94,10.21532221]
[1766687826446,1.18913199,841.77,840.94,10.21532221]
[1766687826746,1.18913199,841.76,840.94,10.21532221]
[1766687826945,1.18913199,841.75,840.94,10.21532221]
[1766687827146,1.18913199,841.74,840.94,10.21532221]
[1766687827350,1.18913199,841.73,840.94,1.19011419]
[1766687827648,1.18913199,841.72,840.94,1.19011419]
[1766687827849,1.18913199,841.71,840.94,1.19011419]
[1766687828049,1.18913199,841.7,840.94,1.19011419]
[1766687828245,1.18913199,841.69,840.94,1.19011419]
[1766687828445,1.0954724,841.83,840.94,1.19011419]
[1766687828646,1.18913209,841.82,840.94,1.19011419]
[1766687828850,1.18913209,841.81,840.94,1.19011419]
[1766687829046,1.18913209,841.8,840.94,1.19011419]
[1766687829245,1.18913209,841.79,840.94,1.19011419]
[1766687829446,1.18913209,841.78,840.94,1.19011419]
[1766687829652,1.18913209,841.77,840.94,1.19011419]
[1766687829852,1.18913209,841.76,840.94,1.19011419]
[1766687830053,1.18913209,841.75,840.94,1.19011419]
[1766687830251,1.18913209,841.74,840.94,1.19011419]
[1766687830451,1.18913209,841.73,840.94,1.19011419]
[1766687830752,1.18913209,841.72,840.94,1.19011419]
[1766687830953,1.18913209,841.71,840.94,1.19011419]
[1766687831153,1.18913209,841.7,840.94,1.19011419]
[1766687831452,1.0954724,841.83,840.94,1.19011419]
[1766687831453,1.18913209,841.69,840.94,1.19011419]
[1766687831654,1.18913209,841.68,840.94,1.19011419]
[1766687831851,1.0954724,841.83,840.94,1.19011419]
[1766687832050,1.18913178,841.82,840.94,1.19011419]
[1766687832352,1.18913178,841.81,840.94,1.19011419]
[1766687832552,1.18913178,841.8,840.94,1.19011419]
[1766687832754,1.18913178,841.79,840.94,1.19011419]
[1766687833053,1.18913178,841.78,840.94,1.19011419]
[1766687833251,1.18913178,841.77,840.94,1.19011419]
[1766687833450,1.18913178,841.76,840.99,1.19011419]
[1766687833652,1.18913178,841.75,840.99,1.19011419]
[1766687833857,1.18913178,841.74,840.99,1.19011419]
[1766687834056,1.18913178,841.73,840.99,10.24850956]
[1766687834255,0.20676563,841.83,840.99,10.24850956]
[1766687834458,1.18907033,841.82,840.99,10.24850956]
[1766687834759,1.18907033,841.81,840.99,10.24850956]
[1766687834955,1.18907033,841.8,840.99,10.24850956]
[1766687835155,1.18907033,841.79,840.99,10.24850956]
[1766687835456,1.18907033,841.78,840.99,10.24850956]
[1766687835656,1.18907033,841.77,840.99,10.24850956]
[1766687835855,1.18907033,841.76,840.99,10.24850956]
[1766687836055,1.18907033,841.75,840.99,10.24850956]
[1766687836259,1.18907033,841.74,840.99,10.24850956]
[1766687836455,1.18907033,841.73,840.99,10.24850956]
[1766687836657,0.20676563,841.83,840.99,10.24850956]
[1766687836861,1.18907033,841.82,840.99,10.24850956]
[1766687837061,1.18907033,841.81,840.99,10.24850956]
[1766687837262,1.18907033,841.8,840.99,10.24850956]
[1766687837462,1.18907033,841.79,840.99,10.24850956]
[1766687837759,1.18907033,841.78,840.99,10.24850956]
[1766687837963,1.18907033,841.77,840.99,1.19011419]
[1766687838158,1.18907033,841.76,840.99,1.19011419]
[1766687838358,1.18907033,841.75,840.99,1.19011419]
[1766687838563,1.18907033,841.74,840.99,1.19011419]
[1766687838761,1.18907033,841.73,840.99,1.19011419]
[1766687838959,1.18907033,841.72,840.99,1.19011419]
[1766687839159,0.20676563,841.83,840.99,1.19011419]
[1766687839360,1.18907013,841.82,840.99,1.19011419]
[1766687839560,1.18907013,841.81,840.99,1.19011419]
[1766687839763,0.20676563,841.83,840.99,1.19011419]
[1766687839764,1.18907013,841.8,840.99,1.19011419]
[1766687840060,1.18907013,841.79,840.99,1.19011419]
[1766687840363,0.20676563,841.83,840.99,1.19011419]
[1766687840364,1.18907013,841.78,840.99,1.19011419]
[1766687840563,1.18907013,841.77,840.99,1.19011419]
[1766687840765,1.18907013,841.76,840.99,1.19011419]
[1766687840961,1.18907013,841.75,840.99,1.19011419]
[1766687841166,1.18907013,841.74,840.99,1.19011419]
[1766687841365,1.18907013,841.73,840.99,1.19011419]
[1766687841567,1.18907013,841.72,840.99,1.19011419]
[1766687841766,0.20676563,841.83,840.99,1.19011419]
[1766687841963,1.18907013,841.82,840.99,1.19011419]
[1766687842264,1.18907013,841.81,840.99,1.19011419]
[1766687842467,1.18907013,841.8,840.99,1.19011419]
[1766687842668,1.18907013,841.79,840.99,1.19011419]
[1766687842967,1.18907013,841.78,840.99,1.19011419]
[1766687843169,1.18907013,841.77,840.99,1.19011419]
[1766687843368,1.18907013,841.76,840.99,1.19011419]
[1766687843562,0.20676563,841.83,840.99,1.19011419]
[1766687843563,1.18907013,841.75,840.99,1.19011419]
[1766687843764,1.18907013,841.74,840.99,1.19011419]
[1766687843968,1.18907013,841.73,840.99,1.19011419]
[1766687844265,1.18907013,841.72,840.99,1.19011419]
[1766687844568,0.20676563,841.83,840.99,1.19011419]
[1766687844769,1.18907013,841.82,840.99,1.19011419]
[1766687844969,1.18907013,841.81,840.99,1.19011419]
[1766687845170,1.18907013,841.8,840.99,1.19011419]
[1766687845370,1.18907013,841.79,840.99,1.19011419]
[1766687845572,1.18907013,841.78,840.99,1.19011419]
[1766687845769,1.18907013,841.77,840.99,1.19011419]
[1766687845973,1.18907013,841.76,840.99,1.19011419]
[1766687846171,1.18907013,841.75,840.99,1.19011419]
[1766687846371,1.18907013,841.74,840.99,1.19011419]
[1766687846572,1.18907013,841.73,840.99,1.19011419]
[1766687846876,1.18907013,841.72,840.99,1.19011419]
[1766687847071,0.20676563,841.83,840.99,1.19011419]
[1766687847272,1.18907013,841.82,840.99,1.19011419]
[1766687847471,1.18907013,841.81,840.99,1.19011419]
[1766687847672,1.18907013,841.8,840.99,1.19011419]
[1766687847873,1.18907013,841.79,840.99,1.19011419]
[1766687848073,1.18907013,841.78,840.99,1.19011419]
[1766687848272,1.18907013,841.77,840.99,1.19011419]
[1766687848572,1.18907013,841.76,840.99,1.19011419]
[1766687848874,1.18907013,841.75,840.99,1.19011419]
[1766687849076,1.18907013,841.74,840.99,1.19011419]
[1766687849274,1.18907013,841.73,840.99,1.19011419]
[1766687849478,1.18907013,841.72,840.99,1.19011419]
[1766687849779,0.20676563,841.83,840.99,1.19011419]
[1766687849974,1.18907023,841.82,840.99,1.19011419]
[1766687850178,1.18907023,841.81,840.99,1.19011419]
[1766687850478,1.18907023,841.8,840.99,1.19011419]
[1766687850674,1.18907023,841.79,840.99,1.19011419]
[1766687850878,1.18907023,841.78,840.99,1.19011419]
[1766687851077,1.18907023,841.77,840.99,1.19011419]
[1766687851378,1.18907023,841.76,840.99,1.19011419]
[1766687851575,1.18907023,841.75,840.99,1.19011419]
[1766687851773,1.18907023,841.74,840.99,1.19011419]
[1766687851975,1.18907023,841.73,840.99,1.19011419]
[1766687852178,1.18907023,841.72,840.99,1.19011419]
[1766687852379,0.20676563,841.83,840.99,1.19011419]
[1766687852579,1.18907023,841.82,840.99,1.19011419]
[1766687852781,1.18907023,841.81,840.99,1.19011419]
[1766687852978,1.18907023,841.8,840.99,1.19011419]
[1766687853279,1.18907023,841.79,840.99,1.19011419]
[1766687853479,1.18907023,841.78,840.99,1.19011419]
[1766687853676,1.18907023,841.77,840.99,1.19011419]
[1766687853882,1.18907023,841.76,840.99,1.19011419]
[1766687854077,1.18907023,841.75,840.99,1.19011419]
[1766687854281,1.18907023,841.74,840.99,1.19011419]
[1766687854579,1.18907023,841.73,840.99,1.19011419]
[1766687854779,0.20676563,841.83,840.99,1.19011419]
[1766687854979,1.18907013,841.82,840.99,1.19011419]
[1766687855278,1.18907013,841.81,840.99,1.19011419]
[1766687855581,1.18907013,841.8,840.99,1.19011419]
[1766687855777,1.18907013,841.79,840.99,1.19011419]
[1766687855982,1.18907013,841.78,840.99,1.19011419]
[1766687856182,1.18907013,841.77,840.99,1.19011419]
[1766687856382,1.18907013,841.76,840.99,1.19011419]
[1766687856582,1.18907013,841.75,840.99,1.19011419]
[1766687856785,1.18907013,841.74,840.99,1.19011419]
[1766687857082,1.18907013,841.73,840.99,1.19011419]
[1766687857282,0.20676563,841.83,840.99,1.19011419]
[1766687857482,1.18907013,841.82,840.99,1.19011419]
[1766687857682,1.18907013,841.81,840.99,1.19011419]
[1766687857979,1.18907013,841.8,840.99,1.19011419]
[1766687858182,1.18907013,841.79,840.99,1.19011419]
[1766687858482,1.18907013,841.78,840.99,1.19011419]
[1766687858782,1.18907013,841.77,840.99,1.19011419]
[1766687858982,1.18907013,841.76,840.99,1.19011419]
[1766687859184,1.18907013,841.75,840.99,1.19011419]
[1766687859482,1.18907013,841.74,840.99,1.19011419]
[1766687859682,1.18907013,841.73,840.99,1.19011419]
[1766687859883,0.20676563,841.83,840.99,1.19011419]
[1766687860076,1.18907013,841.82,840.99,1.19011419]
[1766687860279,1.18907013,841.81,840.99,1.19011419]
[1766687860478,1.18907013,841.8,840.99,1.19011419]
[1766687860779,1.18907013,841.79,840.99,1.19011419]
[1766687860982,1.18907013,841.78,840.99,1.19011419]
[1766687861282,1.18907013,841.77,840.99,1.19011419]
[1766687861582,1.18907013,841.76,840.99,1.19011419]
[1766687861780,1.18907013,841.75,840.99,1.19011419]
[1766687861983,1.18907013,841.74,840.99,1.19011419]
[1766687862183,1.18907013,841.73,840.99,1.19011419]
[1766687862483,0.20676563,841.83,840.99,1.19011419]
[1766687862780,1.18907002,841.82,840.99,1.19011419]
[1766687863083,1.18907002,841.81,840.99,1.19011419]
[1766687863282,1.18907002,841.8,840.99,1.19011419]
[1766687863482,1.18907002,841.79,840.99,1.19011419]
[1766687863682,1.18907002,841.78,840.99,1.19011419]
[1766687863879,0.20676563,841.83,840.99,1.19011419]
[1766687863880,1.18907002,841.77,840.99,1.19011419]
[1766687864081,1.18907002,841.76,840.99,1.19011419]
[1766687864279,1.18907002,841.75,840.99,1.19011419]
[1766687864479,1.18907002,841.74,840.99,1.19011419]
[1766687864782,1.18907002,841.73,840.99,1.19011419]
[1766687865078,0.20676563,841.83,840.99,1.19011419]
[1766687865282,1.18907002,841.82,840.99,1.19011419]
[1766687865483,1.18907002,841.81,840.99,1.19011419]
[1766687865778,1.18907002,841.8,840.99,1.19011419]
[1766687865979,1.18907002,841.79,840.99,1.19011419]
[1766687866177,1.18907002,841.78,840.99,1.19011419]
[1766687866382,1.18907002,841.77,840.99,1.19011419]
[1766687866583,1.18907002,841.76,840.99,1.19011419]
[1766687866782,1.18907002,841.75,840.99,1.19011419]
[1766687866981,1.18907002,841.74,840.99,1.19011419]
[1766687867182,1.18907002,841.73,840.99,1.19011419]
[1766687867385,0.20676563,841.83,840.99,1.19011419]
[1766687867685,1.18906981,841.82,840.99,1.19011419]
[1766687867883,1.18906981,841.81,840.99,1.19011419]
[1766687868084,1.18906981,841.8,840.99,1.19011419]
[1766687868282,1.18906981,841.79,840.99,1.19011419]
[1766687868486,1.18906981,841.78,840.99,1.19011419]
[1766687868687,1.18906981,841.77,840.99,1.19011419]
[1766687868985,1.18906981,841.76,840.99,1.19011419]
[1766687869186,1.18906981,841.75,840.99,1.19011419]
[1766687869382,1.18906981,841.74,840.99,1.19011419]
[1766687869682,1.18906981,841.73,840.99,1.19011419]
[1766687869886,1.18906981,841.72,840.99,1.19011419]
[1766687870186,0.20676563,841.83,840.99,1.19011419]
[1766687870486,1.18906981,841.82,841.0,1.19011419]
[1766687870786,1.18906981,841.81,841.0,1.19011419]
[1766687870983,1.18906981,841.8,841.0,1.19011419]
[1766687871184,1.18906981,841.79,841.0,10.09222976]
[1766687871487,1.18906981,841.78,841.0,10.09222976]
[1766687871684,1.18906981,841.77,841.0,10.09222976]
[1766687871890,1.18906981,841.76,841.0,10.09222976]
[1766687872189,1.18906981,841.75,841.0,10.09222976]
[1766687872387,1.18906981,841.74,841.0,10.09222976]
[1766687872687,1.18906981,841.73,841.0,10.09222976]
[1766687872987,1.18906981,841.72,841.0,10.09222976]
[1766687873187,0.20676563,841.83,841.0,10.09222976]
[1766687873387,1.18906981,841.82,841.0,10.09222976]
[1766687873592,1.18906981,841.81,841.0,10.09222976]
[1766687873891,1.18906981,841.8,841.0,10.09222976]
[1766687874190,1.18906981,841.79,841.0,10.09222976]
[1766687874393,1.18906981,841.78,841.0,1.19011419]
[1766687874590,1.18906981,841.77,841.0,1.19011419]
[1766687874788,1.18906981,841.76,841.0,1.19011419]
[1766687874986,1.18906981,841.75,841.0,1.19011419]
[1766687875191,1.18906981,841.74,841.0,1.19011419]
[1766687875390,1.18906981,841.73,841.0,1.19011419]
[1766687875588,1.18906981,841.72,841.0,1.19011419]
[1766687875792,0.20676563,841.83,841.0,1.19011419]
[1766687875989,1.18907002,841.82,841.0,1.19011419]
[1766687876189,1.18907002,841.81,841.0,1.19011419]
[1766687876395,1.18907002,841.8,841.01,1.19011419]
[1766687876590,1.18907002,841.79,841.01,1.19011419]
[1766687876790,1.18907002,841.78,841.01,1.19011419]
[1766687876993,1.18907002,841.77,841.01,1.19011419]
[1766687877190,1.18907002,841.76,841.01,1.19011419]
[1766687877393,1.18907002,841.75,841.02,1.19011419]
[1766687877690,1.18907002,841.74,841.02,1.19011419]
[1766687877894,1.18907002,841.73,841.02,10.28213158]
[1766687878189,1.18907002,841.72,841.02,10.28213158]
[1766687878394,1.18907002,841.71,841.02,10.28213158]
[1766687878691,1.18907002,841.7,841.02,10.28213158]
[1766687878990,0.20676563,841.83,841.02,10.28213158]
[1766687879190,1.18907002,841.82,841.02,10.28213158]
[1766687879392,1.18907002,841.81,841.02,10.28213158]
[1766687879692,1.18907002,841.8,841.02,10.28213158]
[1766687879888,0.20676563,841.83,841.02,10.28213158]
[1766687879889,1.18907002,841.79,841.02,10.28213158]
[1766687880093,1.18907002,841.78,841.02,10.28213158]
[1766687880293,1.18907002,841.77,841.02,10.28213158]
[1766687880491,1.18907002,841.76,841.02,10.28213158]
[1766687880695,1.18907002,841.75,841.02,10.28213158]
[1766687880893,1.18907002,841.74,841.02,10.28213158]
[1766687881090,1.18907002,841.73,841.02,1.19011419]
[1766687881391,1.18907002,841.72,841.02,1.19011419]
[1766687881596,1.18907002,841.71,841.02,1.19011419]
[1766687881796,1.18907002,841.7,841.02,1.19011419]
[1766687881996,0.20676563,841.83,841.02,1.19011419]
[1766687882291,1.18907012,841.82,841.02,1.19011419]
[1766687882496,1.18907012,841.81,841.02,1.19011419]